[Event "Titled Tuesday Blitz February 21 Late 2023"]
[White "Anton Guijarro, David"]
[Black "Holt, Conrad"]
[WhiteFideId "2285525"]
[BlackFideId "2034387"]
[WhiteElo "2690"]
[BlackElo "2540"]
[Result "1/2-1/2"]
[Round "08"]
[TimeControl "180+2"]
[Date "2023.02.21"]
[WhiteClock "0:00:10"]
[BlackClock "0:00:02"]

1. e4 {[%clk 0:02:59]}  e6 {[%clk 0:03:00]} 2. Nc3 {[%clk 0:02:57]}  d5 {[%clk 0:03:00]} 3. Nf3 {[%clk 0:02:58]}  Nf6 {[%clk 0:02:58]} 4. e5 {[%clk 0:02:58]}  Nfd7 {[%clk 0:02:59]} 5. d4 {[%clk 0:02:59]}  c5 {[%clk 0:02:59]} 6. Bb5 {[%clk 0:03:00]}  Nc6 {[%clk 0:02:58]} 7. O-O {[%clk 0:03:00]}  Be7 {[%clk 0:02:55]} 8. Ne2 {[%clk 0:02:57]}  cxd4 {[%clk 0:02:54]} 9. Nexd4 {[%clk 0:02:57]}  Qc7 {[%clk 0:02:51]} 10. Re1 {[%clk 0:02:53]}  a6 {[%clk 0:02:47]} 11. Nxc6 {[%clk 0:02:44]}  bxc6 {[%clk 0:02:46]} 12. Bd3 {[%clk 0:02:45]}  c5 {[%clk 0:02:45]} 13. c3 {[%clk 0:02:45]}  Bb7 {[%clk 0:02:44]} 14. Bf4 {[%clk 0:02:36]}  h6 {[%clk 0:02:33]} 15. h3 {[%clk 0:02:24]}  g5 {[%clk 0:02:28]} 16. Bg3 {[%clk 0:02:22]}  h5 {[%clk 0:02:27]} 17. Qe2 {[%clk 0:02:20]}  Qc6 {[%clk 0:02:13]} 18. Rac1 {[%clk 0:01:38]}  h4 {[%clk 0:01:59]} 19. Bh2 {[%clk 0:01:36]}  g4 {[%clk 0:01:59]} 20. hxg4 {[%clk 0:01:35]}  h3 {[%clk 0:02:00]} 21. b4 {[%clk 0:01:25]}  hxg2 {[%clk 0:01:51]} 22. Kxg2 {[%clk 0:01:25]}  Rg8 {[%clk 0:01:30]} 23. Bg3 {[%clk 0:00:57]}  Rxg4 {[%clk 0:00:52]} 24. bxc5 {[%clk 0:00:51]}  Qxc5 {[%clk 0:00:43]} 25. Nd4 {[%clk 0:00:47]}  Rg8 {[%clk 0:00:34]} 26. Qf3 {[%clk 0:00:42]}  Rb8 {[%clk 0:00:25]} 27. Qh5 {[%clk 0:00:36]}  Bg5 {[%clk 0:00:06]} 28. Rc2 {[%clk 0:00:34]}  Qe7 {[%clk 0:00:04]} 29. Rb2 {[%clk 0:00:29]}  Kd8 {[%clk 0:00:03]} 30. Reb1 {[%clk 0:00:28]}  Kc7 {[%clk 0:00:04]} 31. Qe2 {[%clk 0:00:26]}  Bc8 {[%clk 0:00:03]} 32. Bxa6 {[%clk 0:00:24]}  Rxb2 {[%clk 0:00:03]} 33. Rxb2 {[%clk 0:00:24]}  Qc5 {[%clk 0:00:03]} 34. Bxc8 {[%clk 0:00:22]}  Rxc8 {[%clk 0:00:03]} 35. Qf3 {[%clk 0:00:22]}  Rf8 {[%clk 0:00:01]} 36. a4 {[%clk 0:00:21]}  Qc4 {[%clk 0:00:02]} 37. a5 {[%clk 0:00:21]}  Nc5 {[%clk 0:00:02]} 38. Nb5+ {[%clk 0:00:19]}  Kc6 {[%clk 0:00:02]} 39. Nd6 {[%clk 0:00:18]}  Qd3 {[%clk 0:00:02]} 40. Rb6+ {[%clk 0:00:18]}  Kd7 {[%clk 0:00:02]} 41. Qxd3 {[%clk 0:00:17]}  Nxd3 {[%clk 0:00:03]} 42. Rb7+ {[%clk 0:00:16]}  Kc6 {[%clk 0:00:03]} 43. Rxf7 {[%clk 0:00:12]}  Ra8 {[%clk 0:00:03]} 44. Rg7 {[%clk 0:00:11]}  Bd2 {[%clk 0:00:03]} 45. Rg6 {[%clk 0:00:10]}  Nc5 {[%clk 0:00:03]} 46. c4 {[%clk 0:00:09]}  d4 {[%clk 0:00:03]} 47. Nf7 {[%clk 0:00:06]}  Bxa5 {[%clk 0:00:03]} 48. Ng5 {[%clk 0:00:05]}  Re8 {[%clk 0:00:02]} 49. Bf4 {[%clk 0:00:05]}  d3 {[%clk 0:00:02]} 50. Kf3 {[%clk 0:00:05]}  Kd7 {[%clk 0:00:01]} 51. Ne4 {[%clk 0:00:04]}  Kc6 {[%clk 0:00:01]} 52. Nxc5 {[%clk 0:00:05]}  Kxc5 {[%clk 0:00:02]} 53. Rg7 {[%clk 0:00:03]}  Kxc4 {[%clk 0:00:02]} 54. Ke4 {[%clk 0:00:04]}  Rc8 {[%clk 0:00:01]} 55. Rd7 {[%clk 0:00:04]}  Bc3 {[%clk 0:00:01]} 56. Rd6 {[%clk 0:00:04]}  Re8 {[%clk 0:00:01]} 57. Be3 {[%clk 0:00:03]}  Bb4 {[%clk 0:00:01]} 58. Rd4+ {[%clk 0:00:03]}  Kb5 {[%clk 0:00:01]} 59. Rxd3 {[%clk 0:00:04]}  Kc6 {[%clk 0:00:02]} 60. f4 {[%clk 0:00:04]}  Be7 {[%clk 0:00:02]} 61. Rc3+ {[%clk 0:00:04]}  Kd7 {[%clk 0:00:02]} 62. Rb3 {[%clk 0:00:05]}  Rc8 {[%clk 0:00:02]} 63. Rb7+ {[%clk 0:00:05]}  Rc7 {[%clk 0:00:03]} 64. Rb8 {[%clk 0:00:05]}  Rc4+ {[%clk 0:00:03]} 65. Kd3 {[%clk 0:00:05]}  Ra4 {[%clk 0:00:04]} 66. Rh8 {[%clk 0:00:05]}  Ra3+ {[%clk 0:00:04]} 67. Ke4 {[%clk 0:00:06]}  Ra4+ {[%clk 0:00:05]} 68. Kf3 {[%clk 0:00:06]}  Ra3 {[%clk 0:00:05]} 69. Rh7 {[%clk 0:00:06]}  Ke8 {[%clk 0:00:06]} 70. Kf2 {[%clk 0:00:05]}  Ra2+ {[%clk 0:00:06]} 71. Kf1 {[%clk 0:00:04]}  Ra3 {[%clk 0:00:06]} 72. Ke2 {[%clk 0:00:04]}  Ra2+ {[%clk 0:00:06]} 73. Kd1 {[%clk 0:00:04]}  Ra4 {[%clk 0:00:06]} 74. Rh6 {[%clk 0:00:04]}  Kf7 {[%clk 0:00:06]} 75. Rh7+ {[%clk 0:00:04]}  Ke8 {[%clk 0:00:06]} 76. Kc2 {[%clk 0:00:04]}  Ra2+ {[%clk 0:00:05]} 77. Kb3 {[%clk 0:00:03]}  Ra3+ {[%clk 0:00:05]} 78. Kc4 {[%clk 0:00:02]}  Rxe3 {[%clk 0:00:06]} 79. Kd4 {[%clk 0:00:02]}  Re1 {[%clk 0:00:06]} 80. Rh6 {[%clk 0:00:02]}  Kf7 {[%clk 0:00:07]} 81. Rh7+ {[%clk 0:00:02]}  Kf8 {[%clk 0:00:07]} 82. Rh6 {[%clk 0:00:03]}  Kf7 {[%clk 0:00:08]} 83. Rh7+ {[%clk 0:00:03]}  Ke8 {[%clk 0:00:08]} 84. Rh6 {[%clk 0:00:04]}  Kd7 {[%clk 0:00:09]} 85. Rh7 {[%clk 0:00:04]}  Re2 {[%clk 0:00:09]} 86. Kd3 {[%clk 0:00:04]}  Rg2 {[%clk 0:00:08]} 87. Ke4 {[%clk 0:00:04]}  Rg1 {[%clk 0:00:09]} 88. Kd4 {[%clk 0:00:05]}  Re1 {[%clk 0:00:09]} 89. Kd3 {[%clk 0:00:05]}  Kd8 {[%clk 0:00:08]} 90. Rh8+ {[%clk 0:00:05]}  Kd7 {[%clk 0:00:08]} 91. Rh7 {[%clk 0:00:05]}  Ra1 {[%clk 0:00:09]} 92. Kd4 {[%clk 0:00:04]}  Ra4+ {[%clk 0:00:09]} 93. Ke3 {[%clk 0:00:05]}  Ra7 {[%clk 0:00:09]} 94. Ke4 {[%clk 0:00:05]}  Kc6 {[%clk 0:00:09]} 95. Rh6 {[%clk 0:00:05]}  Ra4+ {[%clk 0:00:09]} 96. Kf3 {[%clk 0:00:05]}  Kd5 {[%clk 0:00:10]} 97. Rh1 {[%clk 0:00:05]}  Ra3+ {[%clk 0:00:10]} 98. Kg4 {[%clk 0:00:06]}  Bc5 {[%clk 0:00:10]} 99. Rd1+ {[%clk 0:00:05]}  Bd4 {[%clk 0:00:11]} 100. f5 {[%clk 0:00:06]}  exf5+ {[%clk 0:00:10]} 101. Kxf5 {[%clk 0:00:07]}  Rf3+ {[%clk 0:00:10]} 102. Kg4 {[%clk 0:00:07]}  Re3 {[%clk 0:00:10]} 103. e6 {[%clk 0:00:08]}  Rxe6 {[%clk 0:00:10]} 104. Rd2 {[%clk 0:00:08]}  Ke4 {[%clk 0:00:10]} 105. Rg2 {[%clk 0:00:09]}  Be3 {[%clk 0:00:09]} 106. Rg3 {[%clk 0:00:09]}  Rh6 {[%clk 0:00:09]} 107. Rg2 {[%clk 0:00:10]}  Rh8 {[%clk 0:00:08]} 108. Rg3 {[%clk 0:00:10]}  Bf4 {[%clk 0:00:08]} 109. Rg2 {[%clk 0:00:10]}  Ke3 {[%clk 0:00:06]} 110. Kf5 {[%clk 0:00:09]}  Rf8+ {[%clk 0:00:04]} 111. Ke6 {[%clk 0:00:10]}  Kf3 {[%clk 0:00:05]} 112. Ra2 {[%clk 0:00:09]}  Kg4 {[%clk 0:00:05]} 113. Rg2+ {[%clk 0:00:09]}  Bg3 {[%clk 0:00:05]} 114. Rc2 {[%clk 0:00:10]}  Re8+ {[%clk 0:00:05]} 115. Kd7 {[%clk 0:00:10]}  Re1 {[%clk 0:00:05]} 116. Rc4+ {[%clk 0:00:11]}  Kf5 {[%clk 0:00:05]} 117. Kc6 {[%clk 0:00:12]}  Ke6 {[%clk 0:00:04]} 118. Rc5 {[%clk 0:00:12]}  Bd6 {[%clk 0:00:03]} 119. Rc4 {[%clk 0:00:12]}  Be5 {[%clk 0:00:03]} 120. Rc5 {[%clk 0:00:12]}  Ra1 {[%clk 0:00:04]} 121. Rc4 {[%clk 0:00:12]}  Ra8 {[%clk 0:00:04]} 122. Kb7 {[%clk 0:00:13]}  Rb8+ {[%clk 0:00:04]} 123. Kc6 {[%clk 0:00:12]}  Rd8 {[%clk 0:00:04]} 124. Kb5 {[%clk 0:00:12]}  Kd6 {[%clk 0:00:04]} 125. Rc6+ {[%clk 0:00:12]}  Kd5 {[%clk 0:00:04]} 126. Rc5+ {[%clk 0:00:13]}  Ke6 {[%clk 0:00:04]} 127. Rc6+ {[%clk 0:00:13]}  Bd6 {[%clk 0:00:05]} 128. Rc4 {[%clk 0:00:12]}  Kd5 {[%clk 0:00:04]} 129. Rc2 {[%clk 0:00:11]}  Rb8+ {[%clk 0:00:04]} 130. Ka4 {[%clk 0:00:11]}  Bc5 {[%clk 0:00:04]} 131. Rh2 {[%clk 0:00:10]}  Bd4 {[%clk 0:00:03]} 132. Rc2 {[%clk 0:00:09]}  Rb1 {[%clk 0:00:03]} 133. Rc8 {[%clk 0:00:08]}  Bc5 {[%clk 0:00:04]} 134. Ka5 {[%clk 0:00:07]}  Kc4 {[%clk 0:00:04]} 135. Ka6 {[%clk 0:00:06]}  Rb6+ {[%clk 0:00:04]} 136. Ka5 {[%clk 0:00:07]}  Rb7 {[%clk 0:00:04]} 137. Rc6 {[%clk 0:00:07]}  Rh7 {[%clk 0:00:03]} 138. Rg6 {[%clk 0:00:06]}  Bb4+ {[%clk 0:00:03]} 139. Kb6 {[%clk 0:00:06]}  Bc5+ {[%clk 0:00:03]} 140. Kc6 {[%clk 0:00:07]}  Bd4 {[%clk 0:00:03]} 141. Kd6 {[%clk 0:00:07]}  Ra7 {[%clk 0:00:03]} 142. Re6 {[%clk 0:00:07]}  Ra6+ {[%clk 0:00:03]} 143. Kd7 {[%clk 0:00:08]}  Ra5 {[%clk 0:00:03]} 144. Re7 {[%clk 0:00:08]}  Kd5 {[%clk 0:00:03]} 145. Rf7 {[%clk 0:00:08]}  Be5 {[%clk 0:00:03]} 146. Re7 {[%clk 0:00:08]}  Ra7+ {[%clk 0:00:03]} 147. Ke8 {[%clk 0:00:09]}  Ra8+ {[%clk 0:00:03]} 148. Kd7 {[%clk 0:00:09]}  Bd6 {[%clk 0:00:03]} 149. Rf7 {[%clk 0:00:09]}  Rb8 {[%clk 0:00:03]} 150. Rf5+ {[%clk 0:00:09]}  Be5 {[%clk 0:00:03]} 151. Rf7 {[%clk 0:00:10]}  Ra8 {[%clk 0:00:03]} 152. Re7 {[%clk 0:00:10]}  Rf8 {[%clk 0:00:02]} 153. Rh7 {[%clk 0:00:10]}  Bf6 {[%clk 0:00:02]} 1/2-1/2


[Site "https://www.chess.com"]

[Event "Titled Tuesday Blitz February 21 Late 2023"]
[White "Christiansen, Johan-Sebastian"]
[Black "Rasulov, Vugar"]
[WhiteFideId "1512668"]
[BlackFideId "13402390"]
[WhiteElo "2579"]
[BlackElo "2523"]
[Result "0-1"]
[Round "08"]
[TimeControl "180+2"]
[Date "2023.02.21"]
[WhiteClock "0:00:04"]
[BlackClock "0:00:31"]

1. e4 {[%clk 0:03:00]}  c5 {[%clk 0:02:59]} 2. Nf3 {[%clk 0:03:00]}  Nc6 {[%clk 0:03:00]} 3. b4 {[%clk 0:03:00]}  d6 {[%clk 0:02:56]} 4. bxc5 {[%clk 0:02:59]}  dxc5 {[%clk 0:02:57]} 5. Bb5 {[%clk 0:02:58]}  Nf6 {[%clk 0:02:53]} 6. e5 {[%clk 0:02:57]}  Nd5 {[%clk 0:02:51]} 7. O-O {[%clk 0:02:56]}  Bg4 {[%clk 0:02:48]} 8. h3 {[%clk 0:02:56]}  Bh5 {[%clk 0:02:47]} 9. e6 {[%clk 0:02:56]}  fxe6 {[%clk 0:02:46]} 10. Re1 {[%clk 0:02:53]}  Qd6 {[%clk 0:02:41]} 11. Na3 {[%clk 0:02:23]}  O-O-O {[%clk 0:02:40]} 12. Nc4 {[%clk 0:02:23]}  Qc7 {[%clk 0:02:39]} 13. Bb2 {[%clk 0:02:00]}  Nd4 {[%clk 0:02:29]} 14. Bxd4 {[%clk 0:01:57]}  cxd4 {[%clk 0:02:30]} 15. Rxe6 {[%clk 0:01:51]}  a6 {[%clk 0:02:16]} 16. Rxa6 {[%clk 0:01:37]}  bxa6 {[%clk 0:02:10]} 17. Bxa6+ {[%clk 0:01:37]}  Kb8 {[%clk 0:02:10]} 18. Rb1+ {[%clk 0:01:35]}  Ka8 {[%clk 0:02:07]} 19. Bb7+ {[%clk 0:01:31]}  Ka7 {[%clk 0:01:47]} 20. Qc1 {[%clk 0:01:31]}  e5 {[%clk 0:01:37]} 21. Nfxe5 {[%clk 0:01:31]}  Be8 {[%clk 0:01:29]} 22. Qb2 {[%clk 0:01:24]}  Rb8 {[%clk 0:01:25]} 23. Qxd4+ {[%clk 0:01:08]}  Qc5 {[%clk 0:01:24]} 24. Qb2 {[%clk 0:00:47]}  Be7 {[%clk 0:01:05]} 25. a3 {[%clk 0:00:25]}  Rf8 {[%clk 0:00:59]} 26. Kh1 {[%clk 0:00:18]}  Rxf2 {[%clk 0:00:54]} 27. Qb3 {[%clk 0:00:11]}  Rf1+ {[%clk 0:00:49]} 28. Rxf1 {[%clk 0:00:11]}  Rxb7 {[%clk 0:00:50]} 29. Qd3 {[%clk 0:00:11]}  Bf6 {[%clk 0:00:44]} 30. Qxh7 {[%clk 0:00:11]}  Bb5 {[%clk 0:00:41]} 31. d3 {[%clk 0:00:10]}  Bxe5 {[%clk 0:00:40]} 32. Nxe5 {[%clk 0:00:10]}  Ne3 {[%clk 0:00:40]} 33. d4 {[%clk 0:00:08]}  Qxd4 {[%clk 0:00:34]} 34. Qh5 {[%clk 0:00:04]}  Nxf1 {[%clk 0:00:31]} 35. Nc6+ {[%clk 0:00:02]}  Bxc6 {[%clk 0:00:31]} 36. Qa5+ {[%clk 0:00:03]}  Kb8 {[%clk 0:00:31]} 37. Qd8+ {[%clk 0:00:04]}  Qxd8 {[%clk 0:00:31]} 0-1


[Site "https://www.chess.com"]

[Event "Titled Tuesday Blitz February 21 Late 2023"]
[White "Bernadskiy, Vitaliy"]
[Black "Msellek, Ilyass"]
[WhiteFideId "14100371"]
[BlackFideId "675938"]
[WhiteElo "2592"]
[BlackElo "2420"]
[Result "1-0"]
[Round "08"]
[TimeControl "180+2"]
[Date "2023.02.21"]
[WhiteClock "0:00:51"]
[BlackClock "0:01:15"]

1. d4 {[%clk 0:03:00]}  d6 {[%clk 0:02:54]} 2. Nc3 {[%clk 0:03:01]}  Nf6 {[%clk 0:02:54]} 3. e4 {[%clk 0:02:58]}  e5 {[%clk 0:02:54]} 4. dxe5 {[%clk 0:02:58]}  dxe5 {[%clk 0:02:55]} 5. Qxd8+ {[%clk 0:02:58]}  Kxd8 {[%clk 0:02:55]} 6. Bc4 {[%clk 0:02:57]}  Ke8 {[%clk 0:02:55]} 7. Bg5 {[%clk 0:02:50]}  c6 {[%clk 0:02:52]} 8. f4 {[%clk 0:02:48]}  h6 {[%clk 0:02:44]} 9. Bxf6 {[%clk 0:02:46]}  gxf6 {[%clk 0:02:45]} 10. O-O-O {[%clk 0:02:46]}  Bg4 {[%clk 0:02:27]} 11. Nf3 {[%clk 0:02:45]}  Nd7 {[%clk 0:02:26]} 12. h3 {[%clk 0:02:14]}  Be6 {[%clk 0:02:19]} 13. Bxe6 {[%clk 0:02:09]}  fxe6 {[%clk 0:02:20]} 14. f5 {[%clk 0:02:08]}  exf5 {[%clk 0:02:01]} 15. exf5 {[%clk 0:02:09]}  h5 {[%clk 0:02:02]} 16. Ne4 {[%clk 0:02:07]}  Bh6+ {[%clk 0:02:02]} 17. Kb1 {[%clk 0:02:07]}  Ke7 {[%clk 0:02:02]} 18. Nh4 {[%clk 0:01:56]}  Nf8 {[%clk 0:01:59]} 19. Rd6 {[%clk 0:01:52]}  Bg5 {[%clk 0:01:55]} 20. Nf3 {[%clk 0:01:49]}  Nh7 {[%clk 0:01:50]} 21. Re6+ {[%clk 0:01:41]}  Kf7 {[%clk 0:01:49]} 22. Rd1 {[%clk 0:01:01]}  Rad8 {[%clk 0:01:45]} 23. Rdd6 {[%clk 0:01:01]}  Rxd6 {[%clk 0:01:31]} 24. Nxd6+ {[%clk 0:01:01]}  Kg7 {[%clk 0:01:31]} 25. Re7+ {[%clk 0:01:00]}  Kg8 {[%clk 0:01:18]} 26. Rxb7 {[%clk 0:01:00]}  Nf8 {[%clk 0:01:18]} 27. Nxg5 {[%clk 0:00:54]}  fxg5 {[%clk 0:01:17]} 28. f6 {[%clk 0:00:54]}  Rh6 {[%clk 0:01:15]} 29. Rg7+ {[%clk 0:00:51]} 1-0


[Site "https://www.chess.com"]

[Event "Titled Tuesday Blitz February 21 Late 2023"]
[White "Martynov, Pavel"]
[Black "Pichot, Alan"]
[WhiteFideId "4101260"]
[BlackFideId "110973"]
[WhiteElo "2414"]
[BlackElo "2638"]
[Result "0-1"]
[Round "08"]
[TimeControl "180+2"]
[Date "2023.02.21"]
[WhiteClock "0:01:12"]
[BlackClock "0:01:43"]

1. e4 {[%clk 0:03:00]}  c5 {[%clk 0:02:59]} 2. Nf3 {[%clk 0:03:01]}  e6 {[%clk 0:03:00]} 3. Nc3 {[%clk 0:03:00]}  Nc6 {[%clk 0:02:59]} 4. g3 {[%clk 0:02:58]}  d6 {[%clk 0:02:55]} 5. Bg2 {[%clk 0:02:57]}  Nf6 {[%clk 0:02:55]} 6. d4 {[%clk 0:02:58]}  cxd4 {[%clk 0:02:55]} 7. Nxd4 {[%clk 0:02:58]}  Bd7 {[%clk 0:02:55]} 8. Nb3 {[%clk 0:02:57]}  a6 {[%clk 0:02:53]} 9. O-O {[%clk 0:02:57]}  Be7 {[%clk 0:02:54]} 10. g4 {[%clk 0:02:57]}  h6 {[%clk 0:02:52]} 11. f4 {[%clk 0:02:56]}  g5 {[%clk 0:02:50]} 12. f5 {[%clk 0:02:48]}  e5 {[%clk 0:02:45]} 13. Nd5 {[%clk 0:02:41]}  Nxd5 {[%clk 0:02:18]} 14. Qxd5 {[%clk 0:02:41]}  h5 {[%clk 0:02:13]} 15. f6 {[%clk 0:02:16]}  Be6 {[%clk 0:02:11]} 16. Qd1 {[%clk 0:01:39]}  Bxf6 {[%clk 0:02:05]} 17. gxh5 {[%clk 0:01:39]}  g4 {[%clk 0:01:59]} 18. Be3 {[%clk 0:01:30]}  Rxh5 {[%clk 0:01:57]} 19. c3 {[%clk 0:01:15]}  Bg5 {[%clk 0:01:57]} 20. Qd2 {[%clk 0:01:12]}  Bxe3+ {[%clk 0:01:51]} 21. Qxe3 {[%clk 0:01:13]}  Qg5 {[%clk 0:01:52]} 22. Qg3 {[%clk 0:01:13]}  O-O-O {[%clk 0:01:50]} 23. Rad1 {[%clk 0:01:12]}  Rdh8 {[%clk 0:01:46]} 24. Rxd6 {[%clk 0:01:10]}  Rxh2 {[%clk 0:01:44]} 25. Qxh2 {[%clk 0:01:11]}  Qe3+ {[%clk 0:01:41]} 26. Kh1 {[%clk 0:01:10]}  Rxh2+ {[%clk 0:01:41]} 27. Kxh2 {[%clk 0:01:11]}  g3+ {[%clk 0:01:42]} 28. Kh1 {[%clk 0:01:12]}  Qh6+ {[%clk 0:01:43]} 0-1


[Site "https://www.chess.com"]

[Event "Titled Tuesday Blitz February 21 Late 2023"]
[White "Yuan, Qingyu"]
[Black "Hernandez Sanchez, Elvis De La Caridad"]
[WhiteFideId "8609772"]
[BlackFideId "6400353"]
[WhiteElo "2373"]
[BlackElo "2243"]
[Result "1-0"]
[Round "08"]
[TimeControl "180+2"]
[Date "2023.02.21"]
[WhiteClock "0:00:05"]
[BlackClock "0:00:01"]

1. e4 {[%clk 0:03:00]}  e6 {[%clk 0:02:57]} 2. d4 {[%clk 0:03:00]}  d5 {[%clk 0:02:57]} 3. Nd2 {[%clk 0:03:01]}  Be7 {[%clk 0:02:47]} 4. Ngf3 {[%clk 0:02:52]}  Nf6 {[%clk 0:02:44]} 5. Bd3 {[%clk 0:02:50]}  c5 {[%clk 0:02:37]} 6. dxc5 {[%clk 0:02:40]}  dxe4 {[%clk 0:02:30]} 7. Nxe4 {[%clk 0:02:38]}  Nxe4 {[%clk 0:02:29]} 8. Bxe4 {[%clk 0:02:39]}  Qxd1+ {[%clk 0:02:30]} 9. Kxd1 {[%clk 0:02:40]}  Bxc5 {[%clk 0:02:29]} 10. Ke2 {[%clk 0:02:39]}  O-O {[%clk 0:02:24]} 11. Be3 {[%clk 0:02:34]}  Bxe3 {[%clk 0:02:22]} 12. Kxe3 {[%clk 0:02:35]}  Nd7 {[%clk 0:02:19]} 13. c3 {[%clk 0:02:29]}  Nf6 {[%clk 0:02:18]} 14. Rhd1 {[%clk 0:02:22]}  Nxe4 {[%clk 0:02:14]} 15. Kxe4 {[%clk 0:02:22]}  b6 {[%clk 0:02:14]} 16. Ke3 {[%clk 0:02:15]}  Bb7 {[%clk 0:02:10]} 17. Rd7 {[%clk 0:02:11]}  Bc6 {[%clk 0:02:10]} 18. Rd6 {[%clk 0:02:06]}  Rfc8 {[%clk 0:01:59]} 19. Ne5 {[%clk 0:02:00]}  Be8 {[%clk 0:01:35]} 20. Rad1 {[%clk 0:01:52]}  Kf8 {[%clk 0:01:29]} 21. f4 {[%clk 0:01:45]}  Ke7 {[%clk 0:01:28]} 22. g3 {[%clk 0:01:30]}  Rd8 {[%clk 0:01:19]} 23. R6d4 {[%clk 0:01:22]}  Rxd4 {[%clk 0:01:18]} 24. Rxd4 {[%clk 0:01:23]}  f6 {[%clk 0:01:12]} 25. Nd3 {[%clk 0:01:21]}  Bc6 {[%clk 0:01:08]} 26. Nb4 {[%clk 0:01:19]}  Bb7 {[%clk 0:01:06]} 27. Nd3 {[%clk 0:01:17]}  h6 {[%clk 0:01:01]} 28. c4 {[%clk 0:01:10]}  Rc8 {[%clk 0:00:55]} 29. b3 {[%clk 0:01:10]}  g5 {[%clk 0:00:54]} 30. Nf2 {[%clk 0:00:50]}  e5 {[%clk 0:00:44]} 31. fxe5 {[%clk 0:00:50]}  fxe5 {[%clk 0:00:45]} 32. Rd2 {[%clk 0:00:44]}  Ke6 {[%clk 0:00:44]} 33. Nd3 {[%clk 0:00:22]}  Rf8 {[%clk 0:00:38]} 34. Rf2 {[%clk 0:00:22]}  Rd8 {[%clk 0:00:17]} 35. Rf1 {[%clk 0:00:19]}  Bc6 {[%clk 0:00:13]} 36. Nb4 {[%clk 0:00:18]}  Bb7 {[%clk 0:00:14]} 37. Nd3 {[%clk 0:00:18]}  Bc6 {[%clk 0:00:14]} 38. Rf2 {[%clk 0:00:18]}  Bb7 {[%clk 0:00:14]} 39. Re2 {[%clk 0:00:15]}  Rf8 {[%clk 0:00:13]} 40. Kd2 {[%clk 0:00:14]}  e4 {[%clk 0:00:13]} 41. Nf2 {[%clk 0:00:13]}  Ke5 {[%clk 0:00:13]} 42. Ng4+ {[%clk 0:00:13]}  Kd4 {[%clk 0:00:13]} 43. Nxh6 {[%clk 0:00:13]}  Rf1 {[%clk 0:00:10]} 44. g4 {[%clk 0:00:13]}  Ra1 {[%clk 0:00:09]} 45. Nf5+ {[%clk 0:00:13]}  Ke5 {[%clk 0:00:09]} 46. Ke3 {[%clk 0:00:13]}  Rf1 {[%clk 0:00:09]} 47. Ng3 {[%clk 0:00:13]}  Rf3+ {[%clk 0:00:09]} 48. Kd2 {[%clk 0:00:13]}  Kf4 {[%clk 0:00:09]} 49. Kc2 {[%clk 0:00:08]}  e3 {[%clk 0:00:08]} 50. Kd3 {[%clk 0:00:05]}  Bc8 {[%clk 0:00:05]} 51. Nf5 {[%clk 0:00:02]}  Bxf5+ {[%clk 0:00:02]} 52. gxf5 {[%clk 0:00:03]}  Kxf5 {[%clk 0:00:02]} 53. Rxe3 {[%clk 0:00:04]}  Rf2 {[%clk 0:00:02]} 54. Re2 {[%clk 0:00:04]}  Rf3+ {[%clk 0:00:03]} 55. Kd4 {[%clk 0:00:05]}  g4 {[%clk 0:00:03]} 56. b4 {[%clk 0:00:04]}  Kf4 {[%clk 0:00:01]} 57. c5 {[%clk 0:00:04]}  bxc5+ {[%clk 0:00:01]} 58. bxc5 {[%clk 0:00:04]}  Rf1 {[%clk 0:00:02]} 59. Rc2 {[%clk 0:00:05]}  Rd1+ {[%clk 0:00:02]} 60. Kc4 {[%clk 0:00:05]}  Rd8 {[%clk 0:00:01]} 61. c6 {[%clk 0:00:06]}  Ke5 {[%clk 0:00:01]} 62. Kc5 {[%clk 0:00:05]} 1-0


[Site "https://www.chess.com"]

[Event "Titled Tuesday Blitz February 21 Late 2023"]
[White "Postma, Dinant"]
[Black "Naroditsky, Daniel"]
[WhiteFideId "1018612"]
[BlackFideId "2026961"]
[WhiteElo "2131"]
[BlackElo "2618"]
[Result "0-1"]
[Round "08"]
[TimeControl "180+2"]
[Date "2023.02.21"]
[WhiteClock "0:00:04"]
[BlackClock "0:01:45"]

1. d4 {[%clk 0:03:00]}  Nf6 {[%clk 0:03:00]} 2. Bg5 {[%clk 0:03:00]}  Ne4 {[%clk 0:03:00]} 3. Bf4 {[%clk 0:03:00]}  Nc6 {[%clk 0:03:01]} 4. e3 {[%clk 0:02:58]}  d5 {[%clk 0:03:01]} 5. Bd3 {[%clk 0:02:58]}  a6 {[%clk 0:03:00]} 6. Nf3 {[%clk 0:02:53]}  Bg4 {[%clk 0:03:00]} 7. h3 {[%clk 0:02:49]}  Bh5 {[%clk 0:03:00]} 8. Nbd2 {[%clk 0:02:41]}  Nxd2 {[%clk 0:02:58]} 9. Qxd2 {[%clk 0:02:42]}  Bxf3 {[%clk 0:02:58]} 10. gxf3 {[%clk 0:02:43]}  g6 {[%clk 0:02:53]} 11. h4 {[%clk 0:02:41]}  h5 {[%clk 0:02:53]} 12. O-O-O {[%clk 0:02:33]}  e6 {[%clk 0:02:52]} 13. Bg5 {[%clk 0:02:19]}  Be7 {[%clk 0:02:53]} 14. Rhg1 {[%clk 0:02:19]}  Qd7 {[%clk 0:02:49]} 15. c4 {[%clk 0:02:09]}  O-O-O {[%clk 0:02:48]} 16. Bxe7 {[%clk 0:02:03]}  Qxe7 {[%clk 0:02:49]} 17. Rg5 {[%clk 0:01:50]}  dxc4 {[%clk 0:02:39]} 18. Bxc4 {[%clk 0:01:49]}  Kb8 {[%clk 0:02:39]} 19. Qc3 {[%clk 0:01:46]}  Rd6 {[%clk 0:02:35]} 20. Kb1 {[%clk 0:01:42]}  Rhd8 {[%clk 0:02:36]} 21. Rc1 {[%clk 0:01:40]}  Qd7 {[%clk 0:02:24]} 22. f4 {[%clk 0:01:38]}  Ne7 {[%clk 0:02:24]} 23. Ra5 {[%clk 0:01:13]}  Rb6 {[%clk 0:02:24]} 24. Bd3 {[%clk 0:01:06]}  Nd5 {[%clk 0:02:24]} 25. Qd2 {[%clk 0:00:57]}  Qe7 {[%clk 0:02:22]} 26. Be4 {[%clk 0:00:55]}  Qxh4 {[%clk 0:02:19]} 27. Rac5 {[%clk 0:00:47]}  Qe7 {[%clk 0:02:18]} 28. Bxd5 {[%clk 0:00:47]}  exd5 {[%clk 0:02:14]} 29. Rxc7 {[%clk 0:00:46]}  Qxc7 {[%clk 0:02:15]} 30. Rxc7 {[%clk 0:00:46]}  Kxc7 {[%clk 0:02:16]} 31. Qa5 {[%clk 0:00:37]}  Rd6 {[%clk 0:02:09]} 32. f5 {[%clk 0:00:29]}  gxf5 {[%clk 0:02:06]} 33. Qe1 {[%clk 0:00:20]}  h4 {[%clk 0:02:06]} 34. Qh1 {[%clk 0:00:20]}  Rh6 {[%clk 0:02:06]} 35. Qxd5 {[%clk 0:00:20]}  h3 {[%clk 0:02:04]} 36. Qe5+ {[%clk 0:00:14]}  Kd8 {[%clk 0:01:57]} 37. Qb8+ {[%clk 0:00:09]}  Kd7 {[%clk 0:01:57]} 38. Qh2 {[%clk 0:00:08]}  f4 {[%clk 0:01:58]} 39. exf4 {[%clk 0:00:07]}  Rbg6 {[%clk 0:01:52]} 40. f5 {[%clk 0:00:06]}  Rg2 {[%clk 0:01:52]} 41. Qe5 {[%clk 0:00:06]}  Rg1+ {[%clk 0:01:44]} 42. Kc2 {[%clk 0:00:05]}  h2 {[%clk 0:01:45]} 43. Qd5+ {[%clk 0:00:04]}  Kc8 {[%clk 0:01:45]} 44. Qc5+ {[%clk 0:00:04]}  Rc6 {[%clk 0:01:45]} 0-1


[Site "https://www.chess.com"]